Cogmind - Beta 10.2 @@@ ROGUE MODE // 2020.12.17 @ 18:14:35 Player: sentrybuster Result: Self-destructed Performance ------------- Evolutions (4) 2000 Regions Visited (6) 1200 Robots Destroyed (46) 230 Value Destroyed (1490) 1490 Prototype IDs (4) 80 Alien Tech Used (0) 0 Bonus (449) 449 TOTAL SCORE: 5449 Bonus ------- High Alert Combat Kills 129 Follower Combat Kills 347 Friendly Fire -27 Cogmind --------- Core Integrity 304/850 Matter 61/300 Energy 36/100 System Corruption 5% Temperature Cool (98) Movement Core (200) Ox3 Location -6/Factory Parts ------- > --- POWER (1) -------- (None) > --- PROPULSION (4) --- (None) > --- UTILITY (6) ------ Structural Scanner Improved Signal Interpreter > --- WEAPON (4) ------- Heavy Plasma Cannon > --- INVENTORY (4) ---- Armored Leg Peak State ------------ > --- POWER ------------ (None) > --- PROPULSION ------- Light Treads Light Treads Aluminum Leg Aluminum Leg > --- UTILITY ---------- Improved Heat Sink Medium Storage Unit Structural Scanner Improved Signal Interpreter Transmission Jammer Hacking Suite > --- WEAPON ----------- Flak Cannon Gauss Cannon Mini Grenade Launcher Flail > --- INVENTORY -------- Armored Leg Heavy Plasma Cannon Rocket Launcher [Rating: 29] Favorites ----------- Power Cooled Ion Engine Engine Cooled Ion Engine Propulsion Wheel Treads Light Treads Leg Aluminum Leg Wheel Wheel Utility Medium Storage Unit Device Structural Scanner Storage Medium Storage Unit Processor Signal Interpreter Hackware Hacking Suite Weapon Flail Energy Gun Improved EM Shotgun Energy Cannon Heavy Plasma Cannon Ballistic Gun Assault Rifle Ballistic Cannon Flak Cannon Launcher Mini Grenade Launcher Impact Weapon Flail Build | -11 -10 -9 -9 -8 -7 -6 ------- Run | Scr Mat Mat Sto Mat Fac Fac Slots Evolved 8 | . . 2 . 2 2 2 Power . | . . . . . . . Propulsion 2 | . . . . . 1 1 Utility 4 | . . 1 . 1 1 1 Weapon 2 | . . 1 . 1 . . Parts Attached 48 | 6 6 8 12 2 3 11 Power 5 | 1 1 1 1 . . 1 Engine 5 | 1 1 1 1 . . 1 Core . | . . . . . . . Reactor . | . . . . . . . Propulsion 7 | 2 1 . . . 2 2 Treads 2 | . . . . . 2 . Leg 2 | . . . . . . 2 Wheel 3 | 2 1 . . . . . Hover . | . . . . . . . Flight . | . . . . . . . Utility 12 | 1 1 3 2 . . 5 Device 5 | . . 1 1 . . 3 Storage 2 | 1 1 . . . . . Processor 4 | . . 2 1 . . 1 Hackware 1 | . . . . . . 1 Protection . | . . . . . . . Artifact . | . . . . . . . Weapon 24 | 2 3 4 9 2 1 3 Energy Gun 7 | . . 1 6 . . . Energy Cannon 1 | . . . . . . 1 Ballistic Gun 7 | 2 3 1 1 . . . Ballistic Cannon 2 | . . . . . 1 1 Launcher 4 | . . 1 . 2 . 1 Special Weapon . | . . . . . . . Impact Weapon 3 | . . 1 2 . . . Slashing Weapon . | . . . . . . . Piercing Weapon . | . . . . . . . Special Melee Weapon . | . . . . . . . Unidentified Prototypes 2 | . . . 2 . . . Parts Lost 21 | . . . 2 4 . 15 Power 2 | . . . . 1 . 1 Propulsion 5 | . . . . 1 . 4 Utility 6 | . . . 1 . . 5 Weapon 8 | . . . 1 2 . 5 Highest Loss Streak 10 | . . . 1 4 . 10 Average Slot Usage (%) 90 | . 83 96 98 83 70 80 Engine 7 | . 12 11 11 8 . . Treads 4 | . . . . . 15 12 Leg 3 | . . . . . . 11 Wheel 15 | . 28 22 22 16 7 . Device 10 | . . 6 10 9 7 14 Storage 8 | . 15 11 11 9 7 3 Processor 9 | . . 14 11 9 7 6 Hackware 1 | . . . . . . 4 Energy Gun 7 | . . 2 16 13 . . Ballistic Gun 7 | . 26 21 4 . . . Ballistic Cannon 2 | . . . . . 1 9 Launcher 4 | . . 4 . 9 15 8 Impact Weapon 6 | . . 3 10 9 7 3 Naked Turns . | . . . . . . . Heaviest Build 27 | 11 15 22 25 26 22 27 Greatest Support 40 | 26 26 26 26 26 40 40 Greatest Overweight (x) 2 | 2 . . . 1 . 1 Average Overweight (x) . | . . . . . . . Largest Inventory Capacity 10 | 6 10 8 8 8 8 8 Average Capacity 7 | 5 6 8 8 8 8 6 Most Carried 8 | 6 7 8 8 7 4 4 Average Carried 5 | 3 6 7 7 5 3 2 Final Capacity 8 | 6 8 8 8 8 8 4 Final Carried 8 | 6 6 8 7 5 3 1 Class Distribution -------------------- 55% | Mutant 12% | Infiltrator-Skirmisher 12% | Infiltrator-Mutant 10% | Commander-Mutant 7% | Skirmisher Dominant Class ---------------- Mutant | -10/Materials Mutant | -9/Materials Mutant | -9/Storage Commander-Mutant | -8/Materials Mutant | -7/Factory Infiltrator-Skirmisher | -6/Factory Resources | -11 -10 -9 -9 -8 -7 -6 ----------- Run | Scr Mat Mat Sto Mat Fac Fac Matter Collected 933 | 242 56 168 238 50 . 179 Remotely . | . . . . . . . Salvage Created 1590 | . 56 218 708 372 . 236 Parts 92 | . 3 13 34 31 . 11 Haulers Intercepted 4 | . 1 . 3 . . . Recyclers Shooed 5 | . 1 2 1 1 . . Parts Field Recycled . | . . . . . . . Retrieved Matter . | . . . . . . . Parts Self-Destructed . | . . . . . . . Prevented . | . . . . . . . Kills | -11 -10 -9 -9 -8 -7 -6 ------- Run | Scr Mat Mat Sto Mat Fac Fac Combat Hostiles Destroyed 31 | . . 4 7 12 . 8 Melee 1 | . . 1 . . . . Guns 13 | . . 3 7 3 . . Cannons 4 | . . . . . . 4 AOE 13 | . . . . 9 . 4 Classes Destroyed 11 | . 1 3 4 1 . 2 Worker 2 | . . . 1 1 . . Hauler 4 | . 1 . 3 . . . Recycler 4 | . . . 2 2 . . Operator 2 | . . . 1 1 . . Watcher 3 | . . 1 . 2 . . Swarmer 7 | . . . . 7 . . Grunt 13 | . . 2 3 4 . 4 Brawler 1 | . . . 1 . . . Duelist 1 | . . . . . . 1 Sentry 7 | . . 2 3 1 . 1 Programmer 2 | . . . . . . 2 Best Kill Streak 16 | . 1 2 3 16 . 2 Combat Bots Only 11 | . . 2 2 11 . 2 Max Kills in Single Turn 3 | . 1 1 1 3 . 2 Gunslinging . | . . . . . . . Exploded 3 | . . . . 3 . 2 Melee 1 | . . 1 . . . . Uniques/NPCs Destroyed . | . . . . . . . Combat | -11 -10 -9 -9 -8 -7 -6 -------- Run | Scr Mat Mat Sto Mat Fac Fac Damage Taken 2583 | . . 192 341 435 . 1615 Core 743 | . . 43 79 75 . 546 Absorbed by Shields . | . . . . . . . Core Remaining (%) 91 | 100 100 . 69 86 100 . Volleys Fired 91 | . 6 16 26 19 . 24 Largest 3 | . 2 3 2 2 . 3 Hottest 122 | . 40 90 101 101 . 122 Shots Fired 169 | . 12 39 50 27 . 41 Gun 115 | . 12 38 50 15 . . Cannon 31 | . . . . . . 31 Launcher 23 | . . 1 . 12 . 10 Special . | . . . . . . . Kinetic 86 | . 12 32 13 . . 29 Thermal 34 | . . 6 13 13 . 2 Explosive 23 | . . 1 . 12 . 10 Electromagnetic 26 | . . . 24 2 . . Robot Hit Streak 17 | . 3 17 10 3 . 7 Robot Miss Streak 4 | . 2 3 4 2 . 4 Penetration Max . | . . . . . . . Secondary Targets . | . . . . . . . Shots Hit Robots 135 | . 6 31 47 14 . 37 Core Hits 108 | . 2 10 25 29 . 42 Critical Hits 1 | . . . 1 . . . Critical Kills 1 | . . . 1 . . . Critical Parts Destroyed . | . . . . . . . Melee Attacks 28 | . . 12 16 . . . Impact 28 | . . 12 16 . . . Slashing . | . . . . . . . Piercing . | . . . . . . . Sneak Attacks 5 | . . . 5 . . . Combat Hostiles . | . . . . . . . Follow-up Attacks . | . . . . . . . Damage Inflicted 4470 | . 76 459 977 1542 . 1416 Guns 1173 | . 76 311 602 184 . . Cannons 686 | . . . . . . 686 Explosions 2156 | . . . 77 1358 . 721 Melee 446 | . . 148 298 . . . Ramming 9 | . . . . . . 9 Kinetic 1104 | . 76 260 143 . . 625 Thermal 725 | . . 51 210 256 . 208 Explosive 1832 | . . . . 1258 . 574 Electromagnetic 354 | . . . 326 28 . . Impact 446 | . . 148 298 . . . Slashing . | . . . . . . . Piercing . | . . . . . . . Highest Corruption 5 | . . . 1 2 . 5 Average Corruption 2 | . . . 1 2 . 4 Corruption Purged . | . . . . . . . Effects 12 | . . . 1 . . 11 Message Errors 2 | . . . 1 . . 1 Matter Fused 2 | . . . . . . 2 Heat Flow Errors 1 | . . . . . . 1 Energy Discharges 2 | . . . . . . 2 Parts Rejected 1 | . . . . . . 1 Data Loss (minor) 1 | . . . . . . 1 Data Loss (major) 1 | . . . . . . 1 Targeting Errors 2 | . . . . . . 2 Overload Shots . | . . . . . . . Overflow Damage 308 | . . . 104 72 . 132 Projectiles . | . . . . . . . Explosions 222 | . . . 18 72 . 132 Melee 86 | . . . 86 . . . Knockbacks 11 | . . . 2 . . 9 Impact 2 | . . . 2 . . . Kinetic 9 | . . . . . . 9 Secondary . | . . . . . . . Self-Inflicted Damage 313 | . . . 31 71 . 211 Shots 7 | . . . 1 2 . 4 Rammed 7 | . . . . . . 7 Targets Rammed 7 | . . . . . . 7 Kicked . | . . . . . . . Crushed . | . . . . . . . Highest Temperature 140 | . . 42 63 72 . 140 Average Temperature 24 | . . 16 19 29 . 40 Received Heat Transfer 690 | . . 96 87 132 . 375 Siege Activations . | . . . . . . . Robots Corrupted 1 | . . . 1 . . . Combat Hostiles . | . . . . . . . Parts Fried 3 | . . . 3 . . . Impact Corruptions 3 | . . . 3 . . . Robots Melted . | . . . . . . . Combat Hostiles . | . . . . . . . Parts Melted 1 | . . . . 1 . . Heat Transferred 1251 | . . 148 520 383 . 200 Parts Sabotaged . | . . . . . . . Parts Stolen . | . . . . . . . Parts Stripped . | . . . . . . . Power Chain Reactions 2 | . . . 2 . . . Missiles Intercepted . | . . . . . . . Alert | -11 -10 -9 -9 -8 -7 -6 ------- Run | Scr Mat Mat Sto Mat Fac Fac Peak Influence 818 | . 40 161 491 818 371 307 Initial 371 | . . 16 26 143 371 181 Average 197 | . 13 90 230 473 371 201 Maximum Alert Level 3 | . . . 2 3 1 1 Low Security (%) 58 | 100 100 100 41 20 . 53 Level 1 33 | . . . 46 14 100 46 Level 2 6 | . . . 11 46 . . Level 3 1 | . . . . 18 . . Level 4 . | . . . . . . . Level 5 . | . . . . . . . High Security . | . . . . . . . Max Security . | . . . . . . . Squads Dispatched 5 | . . . 1 2 . 2 Investigation . | . . . . . . . Extermination 2 | . . . . . . 2 Reinforcement 2 | . . . 1 1 . . Assault 1 | . . . . 1 . . Garrison . | . . . . . . . Intercept . | . . . . . . . Construction Impeded . | . . . . . . . Haulers Reinforced . | . . . . . . . Stealth | -11 -10 -9 -9 -8 -7 -6 --------- Run | Scr Mat Mat Sto Mat Fac Fac Distress Signals 7 | . . . 4 3 . . Communications Jammed . | . . . . . . . Distress Signals . | . . . . . . . Times Spotted 64 | . 3 7 20 21 . 13 Peak Tracking Total 9 | . 2 3 3 9 . 5 Tactical Retreats 1 | . . 1 . . . . Traps | -11 -10 -9 -9 -8 -7 -6 ------- Run | Scr Mat Mat Sto Mat Fac Fac Traps Triggered 5 | . 3 . 1 1 . . Indirectly . | . . . . . . . Trap Hack Attempts . | . . . . . . . Triggered . | . . . . . . . Disarmed . | . . . . . . . Reprogrammed . | . . . . . . . Reused . | . . . . . . . Traps Extracted . | . . . . . . . Installed . | . . . . . . . Triggered . | . . . . . . . Machines | -11 -10 -9 -9 -8 -7 -6 ---------- Run | Scr Mat Mat Sto Mat Fac Fac Machines Disabled 11 | . . . 7 3 . 1 Max in Single Turn 3 | . . . 1 3 . 1 Garrison Access 2 | . . . 1 1 . . Machines Sabotaged . | . . . . . . . Garrisons Compromised . | . . . . . . . Overloaded Fab Kills . | . . . . . . . Fab Network Shutdowns . | . . . . . . . Hacking | -11 -10 -9 -9 -8 -7 -6 --------- Run | Scr Mat Mat Sto Mat Fac Fac Machines Accessed 22 | . 3 5 10 2 . 2 Terminals 13 | . 2 3 6 1 . 1 Fabricators . | . . . . . . . Repair Stations 2 | . . 1 1 . . . Recycling Units 5 | . 1 1 2 . . 1 Scanalyzers . | . . . . . . . Garrison Access 2 | . . . 1 1 . . Total Hacks 55 | . 6 13 27 3 . 6 Successful 33 | . 4 6 18 1 . 4 Failed 22 | . 2 7 9 2 . 2 Catastrophic 2 | . . . 1 1 . . Database Lockouts . | . . . . . . . Manual 33 | . 2 9 19 . . 3 Terminals 39 | . 5 7 22 1 . 4 Fabricators . | . . . . . . . Repair Stations 4 | . . 2 2 . . . Recycling Units 9 | . 1 4 2 . . 2 Scanalyzers . | . . . . . . . Garrison Access 3 | . . . 1 2 . . Terminal Hacks 13 | . 2 . 9 1 . 1 Robot Schematic 1 | . . . 1 . . . Prototype ID Bank 1 | . . . 1 . . . Open Door 1 | . . . 1 . . . Alert Level 2 | . . . 1 . . 1 Reinforcement Status 1 | . . . 1 . . . Zone Layout 7 | . 2 . 4 1 . . Fabricator Hacks . | . . . . . . . Repair Station Hacks 4 | . . 2 2 . . . Scan Component 2 | . . 1 1 . . . Repair 2 | . . 1 1 . . . Recycling Unit Hacks 4 | . 1 . 2 . . 1 Retrieve Matter 1 | . . . . . . 1 Retrieve Components 3 | . 1 . 2 . . . Scanalyzer . | . . . . . . . Garrison Access Hacks 1 | . . . 1 . . . Seal Access 1 | . . . 1 . . . Unauthorized Hacks 11 | . 1 4 4 . . 2 Terminals 10 | . 1 3 4 . . 2 Track 5 | . 1 1 2 . . 1 Botnet 5 | . . 2 2 . . 1 Fabricators . | . . . . . . . Repair Stations . | . . . . . . . Recycling Units 1 | . . 1 . . . . Monitor 1 | . . 1 . . . . Scanalyzers . | . . . . . . . Garrison Access . | . . . . . . . Data Cores Recovered 1 | . . . . 1 . . Used 1 | . . . . 1 . . Hacking Detections 14 | . 2 4 5 1 . 2 Full Trace Events 2 | . . . 1 1 . . Feedback Events . | . . . . . . . Feedback Blocked . | . . . . . . . Robot Schematics Acquired 1 | . . . 1 . . . Robots Built . | . . . . . . . Matter . | . . . . . . . Time . | . . . . . . . Total Robot Build Rating . | . . . . . . . Part Schematics Acquired . | . . . . . . . Parts Built . | . . . . . . . Matter . | . . . . . . . Time . | . . . . . . . Total Part Build Rating . | . . . . . . . Parts Repaired 2 | . . 1 1 . . . Time 52 | . . 26 26 . . . Parts Recycled . | . . . . . . . Recycled Matter . | . . . . . . . Retrieved Matter . | . . . . . . . Retrieved Components 20 | . 2 . 18 . . . Parts Scanalyzed . | . . . . . . . Part Schematics Acquired . | . . . . . . . Parts Damaged . | . . . . . . . Bothacking | -11 -10 -9 -9 -8 -7 -6 ------------ Run | Scr Mat Mat Sto Mat Fac Fac Used RIF Installer . | . . . . . . . Robots Hacked . | . . . . . . . Non-combat . | . . . . . . . Combat . | . . . . . . . Robot Hacks Applied . | . . . . . . . Relay Couplers Released . | . . . . . . . Robots Rewired . | . . . . . . . Allies Hacked . | . . . . . . . Hacks Repelled . | . . . . . . . Allies | -11 -10 -9 -9 -8 -7 -6 -------- Run | Scr Mat Mat Sto Mat Fac Fac Total Allies 12 | . . . 12 . . . Largest Group 11 | . . . 11 11 . . Highest-Rated Group 187 | . . . 187 187 . . Highest-Rated Ally 99 | . . . 99 99 . . Total Orders . | . . . . . . . Ally Attacks 76 | . . . 24 52 . . Total Damage 1112 | . . . 674 438 . . Kills 12 | . . . 7 5 . . Allies Corrupted . | . . . . . . . Allies Melted . | . . . . . . . Intel | -11 -10 -9 -9 -8 -7 -6 ------- Run | Scr Mat Mat Sto Mat Fac Fac Robot Analysis Total . | . . . . . . . Derelict Logs Recovered . | . . . . . . . Drone Launches . | . . . . . . . Drone Recoveries . | . . . . . . . Exploration | -11 -10 -9 -9 -8 -7 -6 ------------- Run | Scr Mat Mat Sto Mat Fac Fac Turns Passed 2360 | 55 107 482 824 141 74 677 Spaces Moved 1541 | 45 87 300 648 102 41 318 Core 5 | 5 . . . . . . Treads 211 | . . . . . 41 170 Legs 148 | . . . . . . 148 Wheels 1177 | 40 87 300 648 102 . . Hover . | . . . . . . . Flight . | . . . . . . . Fastest Speed 50 | 50 90 90 90 90 160 120 Average Speed 103 | 89 90 90 90 90 160 147 Slowest Speed 160 | 150 90 90 90 90 160 160 Overloaded Moves . | . . . . . . . Propulsion Burnouts . | . . . . . . . Robots Hopped . | . . . . . . . Cave-ins Triggered . | . . . . . . . Exploration Rate (%) 24 | 4 24 27 88 16 2 10 Regions Visited 6 Branch Regions 1 Pre-discovered Areas . | . . . . . . . Known Exits Taken 4 | . . 1 1 1 1 . Unknown Exits Taken 2 | 1 1 . . . . . Scrap Searched . | . . . . . . . Spaces Dug 4 | . . 4 . . . . Terrain Destroyed 289 | . . 16 4 157 . 112 Melee 4 | . . 4 . . . . Projectile 1 | . . . . . . 1 AOE 284 | . . 12 4 157 . 111 Terrain Rammed . | . . . . . . . Walls Destroyed . | . . . . . . . Machines Disabled . | . . . . . . . Actions | -11 -10 -9 -9 -8 -7 -6 --------- Run | Scr Mat Mat Sto Mat Fac Fac Total 2085 | 56 101 458 814 124 49 483 Wait 343 | . 1 117 102 2 6 115 Move 1535 | 44 86 299 647 101 40 318 Hop . | . . . . . . . Pick Up 14 | 6 . 3 1 . . 4 Fast Attach 31 | 6 6 5 8 . 1 5 Attach 12 | . . 1 1 2 2 6 Detach 7 | . 1 2 2 . . 2 Swap 5 | . . 2 3 . . . Drop 12 | . 1 1 8 . . 2 Fire 91 | . 6 16 26 19 . 24 Melee 28 | . . 12 16 . . . Ram . | . . . . . . . Kick . | . . . . . . . Crush 7 | . . . . . . 7 Escape Stasis . | . . . . . . . Rewire . | . . . . . . . Trap . | . . . . . . . Miscellaneous . | . . . . . . . Route ------- -11/Scrapyard -10/Materials -9/Materials -9/Storage -8/Materials -7/Factory -6/Factory History --------- Turn | Location | Event 21 | -11/Scrapyard | Discovered new exit (range 15) 56 | -11/Scrapyard | Entered Materials 130 | -10/Materials | Discovered new exit (range 16) 163 | -10/Materials | Entered another Materials area 163 | -9/Materials | Evolved 2 slots: Utility x1, Weapon x1 545 | -9/Materials | Discovered new exit (range 15) 613 | -9/Materials | Repaired Assault Rifle 638 | -9/Materials | Identified exit to Storage 645 | -9/Materials | Entered Storage 813 | -9/Storage | Repaired Med. Laser 945 | -9/Storage | Met 01-MTF 973 | -9/Storage | Build established: Mutant 1299 | -9/Storage | Discovered new exit (range 16) 1311 | -9/Storage | Assisted by bots powering up and referring to "LRC-V3" 1445 | -9/Storage | Identified exit to Materials 1469 | -9/Storage | Entered Materials 1469 | -8/Materials | Accompanied by 11 allies (01-MTF) 1469 | -8/Materials | Evolved 2 slots: Utility x1, Weapon x1 1474 | -8/Materials | 01-MTF left 1579 | -8/Materials | Discovered new exit (range 9) 1610 | -8/Materials | Identified exit to Factory 1610 | -8/Materials | Entered Factory 1610 | -7/Factory | Evolved 2 slots: Propulsion x1, Utility x1 1623 | -7/Factory | Destroyed 11 combat bots 1631 | -7/Factory | Lost 4 parts (1p1n2w) 1652 | -7/Factory | Discovered new exit (range 10) 1665 | -7/Factory | Identified exit to Factory 1684 | -7/Factory | Entered another Factory area 1684 | -6/Factory | Evolved 2 slots: Propulsion x1, Utility x1 2319 | -6/Factory | Lost 3 parts (1n1u1w) 2356 | -6/Factory | Core integrity fell below 50% 2361 | -6/Factory | Self-destructed Last Messages --------------- 02296_ Acquired Target Analyzer. 02299_ System corrupted: Substantial component data lost. 02319_ System corrupted: Flak Cannon targeting data glitched. 02338_ A-15 Conveyor destroyed. 02346_ Imp. Heat Sink destroyed. 02347_ Acquired 62 matter. 02347_ Lgt. Treads destroyed. 02348_ Transmission Jammer destroyed. 02348_ Lgt. Treads destroyed. 02348_ G-50 Soldier knocked back. 02349_ Flak Cannon destroyed. 02351_ Lgt. Angular Momentum Engine destroyed. 02351_ Aluminum Leg destroyed. 02351_ G-50 Soldier destroyed. 02353_ Mni. Grenade Launcher destroyed. 02353_ Destroyed Mni. Grenade Launcher. 02353_ Target Analyzer destroyed. 02353_ Destroyed Target Analyzer. 02356_ Rocket Launcher destroyed. 02359_ The unstable cave ceiling collapses. Map ----- +----------------------------------------------------+ | ?????????????????????????????"" """ ## """ | | ???????????????????????????? ## """ | | ?????????????????????????? ## """ | | ???????????????????????? # | | ?????????????????????# [ + !! | | ?????????????????????# # !* | | ?????????????????????# ##+########### # !* | | ?????????????????????# # #??# # | | ?????????????????????# # #??# # ! | | ?????????????????????# # """ #??# # | | ?????????????????????# # """ !!! #??# ###### | | ?????????????????????# # """ !!! #??# #? | | ?????????????????????# # !! #??# # | | ?????????????????????# # #### # | | ?????????????????????# # + + | | ?????????????????????# ########### # | | ????????????########## ########### # ! | | ???????????? ^ #? | | ??????????? ############+###= #? | | ??????????? ^ #????# #|[ #?? | | ??????????? ^ R #????# + #?? | | ??????????? ^ #????# ### #?? | | ?????????????########### ###???# ??# #?? | | ?????????????????????# #???# #?? #?? | | ?????????????????????# == #???# #??+#?? | | ??????????????????????# =@= ##???# #?????? | | ?????????????????????# %=g #???# #?????? | | ?????????????????????# Y%g #??#######+###?????? | | ?????????????????????# ?????????????????? | | ?????????????????????# ???????????????? | | ?????????????????????# ?????????????? | | ?????????????????????## ##### ???????????? | | ??????????????????????## #????? ??????????? | | ???????????????????????# k####??????? ???????????? | | ???????????????????????## ???????????????????????? | | ????????????????????????? ???????????????????????? | | ????????????????????????? ???????????????????????? | | ????????????????????????? ???????????????????????? | | ????????????????????????? ???????????????????????? | | ????????????????????????? ???????????????????????? | | ????????????????????????? ???????????????????????? | | ?????????????????????????????????????????????????? | | ?????????????????????????????????????????????????? | | ?????????????????????????????????????????????????? | | ?????????????????????????????????????????????????? | | ?????????????????????????????????????????????????? | | ?????????????????????????????????????????????????? | | ?????????????????????????????????????????????????? | | ?????????????????????????????????????????????????? | | ?????????????????????????????????????????????????? | +----------------------------------------------------+ Best States ------------- Heat Dissipation 51 Energy Generation 18 Energy Capacity 280 Matter Stores 300 Matter Capacity 300 Sight Range 18 Robot Scan Range 16 Terrain Scan Density 10 Jamming Range 8 Evasion (%) 42 Target Analysis 5 Recoil Reduction 2 Offensive Hacking 10 Item Schematics ----------------- None Robot Schematics ------------------ O-16 Technician | -9/Storage | Hacked Fabricated ------------ Nothing Alien Tech Used ----------------- None Achievements -------------- None Challenges ------------ None Game ------ Seed MassTacticalGun Manual? 0 Play Time 00:33:38 Cumulative 93.7 hours Start 2020.12.16 @ 08:30:56 End 2020.12.17 @ 18:14:35 Sessions 5 Manual Loads 0 Difficulty Rogue Special Mode None Game No. 171 Rogue 167 Adventurer 0 Explorer 4 Win Type - Total 0 Types 0/0/0/0/0/0/0/0/0 Lore% 60 Gallery% 67 Achievement% 44 Wizard Run 0 Options --------- ASCII 1 Keyboard 1 Movement Numpad Keybinds 0 Fullscreen 1 Font 18/X11 Map View 76x50 Tactical HUD 1 Map Filters NONE Filters NONE Steam 1 RUN: b5e3b630-8642-4f06-a499-47c127bfe1de